[Event "4th Tata Steel India Blitz Open 2022"]
[Site "Kolkota"]
[Date "2022.12.03"]
[Round "4.2"]
[White "Nakamura, Hikaru"]
[Black "Mamedyarov, Shakhriyar"]
[Result "1/2-1/2"]
[ECO "A05"]
[WhiteElo "2768"]
[BlackElo "2741"]
[Annotator "TA"]
[PlyCount "56"]
[EventDate "2022.11.29"]
[EventType "tourn"]
[EventCountry "IND"]
[SourceTitle "playchess.com"]
[Source "ChessBase"]
[SourceQuality "1"]
[TimeControl "180+2"]

{[%evp 9,56,0,7,0,6,0,27,33,29,18,34,1,3,0,2,0,0,-21,-29,-61,-66,-57,-53,-58,-24,-50,-46,-47,-34,-27,-22,-21,0,-66,-62,-66,-32,-99,-2,-6,-7,-7,-6,-5,0,0,0,0,0]} 1. Nf3 {[%emt 0:00:01]} Nf6 {[%emt 0:00:00]} 2. e3 {[%emt 0:00:00]} g6 {[%emt 0:00:02]} 3. b4 {[%emt 0:00:01]} (3. d4 Bg7 4. c4 O-O 5. Be2 d6 6. O-O Bf5 7. b3 e5 8. Bb2 Nc6 9. Nbd2 exd4 10. Nxd4 Nxd4 11. Bxd4 c6 12. Qc1 Nd7 13. Nf3 Ne5 14. Rd1 {½-½ (93) Nakamura,H (2768)-Mamedyarov,S (2758) Saint Louis 2022}) 3... e6 {[%emt 0:00:12]} 4. a3 {[%emt 0:00:05]} a5 {[%emt 0:00:01]} 5. b5 {[%emt 0:00:05]} Bg7 {[%emt 0:00:19]} 6. Bb2 {[%emt 0:00:01] A05: Réti Opening: 1 Nf3 Nf6.} O-O {[%emt 0:00:01]} 7. c4 {[%emt 0:00:00] [#]} d5 $146 {[%emt 0:00:02]} ({Predecessor:} 7... c5 8. Nc3 d5 9. Na4 Nbd7 10. Rc1 Qe7 11. Qb3 dxc4 12. Bxc4 b6 13. Ne5 Bb7 14. Nxd7 Nxd7 15. Bxg7 Kxg7 {0-1 (82) Philippe,G (2357)-Lagarde,M (2607) Nimes 2018}) 8. cxd5 {[%emt 0:00:06] White has an edge.} exd5 {[%emt 0:00:03]} 9. Be2 {[%emt 0:00:03]} c5 {[%emt 0:00:03][%cal Od5d4]} 10. bxc6 {[%emt 0:00:04]} bxc6 {[%emt 0:00:02]} 11. O-O {[%emt 0:00:04]} c5 {[%emt 0:00:13]} 12. d3 {[%emt 0:00:20]} Ba6 {[%emt 0:00:06]} 13. Nc3 {[%emt 0:00:04]} (13. Qc2 $5 {[%cal Rc2c5]}) 13... d4 {[%emt 0:00:12]} 14. Na4 {[%emt 0:00:20][%csl LRc5,LRd4]} dxe3 $1 {[%emt 0:00:12]} 15. fxe3 {[%emt 0:00:01]} Nbd7 {[%emt 0:00:04]} 16. e4 {[%emt 0:00:15]} c4 {[%emt 0:00:08]} 17. Re1 {[%emt 0:00:49]} (17. dxc4 {is interesting.} Rb8 18. Rb1 Re8 19. c5) 17... Rb8 {[%emt 0:00:04][%cal Ob8b2] Hoping for ...Rxb2!} 18. Bd4 {[%emt 0:00:05]} cxd3 {[%emt 0:00:19]} 19. Bxd3 {[%emt 0:00:01]} Bxd3 {[%emt 0:00:03]} 20. Qxd3 {[%emt 0:00:01]} Ng4 {[%emt 0:00:20] Threatens to win with ...Nde5.} 21. Rad1 {[%emt 0:00:11]} (21. Bxg7 $11 Kxg7 22. Rad1) 21... Nde5 $15 {[%emt 0:00:19]} 22. Nxe5 {[%emt 0:00:16]} Bxe5 {[%emt 0:00:12]} 23. h3 {[%emt 0:00:04] [#]} (23. Bxe5 $15 Qxd3 24. Rxd3 Nxe5 25. Rd5) 23... Bxd4+ {[%emt 0:00:13]} ({Black should play} 23... Rb3 $1 $17 {[%cal Rb3d3]} 24. Qc4 (24. Qxb3 Bxd4+ 25. Rxd4 Qxd4+ 26. Kh1 Nf2+ 27. Kh2 Nxe4 $17) 24... Bxd4+ 25. Qxd4 Qxd4+ 26. Rxd4 Ne3) 24. Qxd4 $11 {[%emt 0:00:01] The position is equal.} Qxd4+ {[%emt 0:00:01]} 25. Rxd4 {[%emt 0:00:01]} Ne5 {[%emt 0:00:01]} 26. Rd5 {[%emt 0:00:03][%csl LRa5,LRe5]} Nc4 {[%emt 0:00:01]} 27. Nc5 {[%emt 0:00:01]} Nb6 {[%emt 0:00:13] Against Nd7} 28. Rd6 {[%emt 0:00:30]} Rfc8 {[%emt 0:00:02] Weighted Error Value: White=0.13 (very precise) /Black=0.10 (very precise)} 1/2-1/2

[Event "4th Tata Steel India Blitz Open 2022"]
[Site "Kolkota"]
[Date "2022.12.03"]
[Round "4.4"]
[White "Nihal Sarin"]
[Black "Gukesh D"]
[Result "0-1"]
[ECO "A06"]
[WhiteElo "2670"]
[BlackElo "2725"]
[Annotator "TA"]
[PlyCount "58"]
[EventDate "2022.11.29"]
[EventType "tourn"]
[EventCountry "IND"]
[SourceTitle "playchess.com"]
[Source "ChessBase"]
[SourceQuality "1"]
[TimeControl "180+2"]

{[%evp 9,58,12,14,16,13,4,16,0,13,0,10,0,13,0,38,45,44,41,49,36,43,44,43,47,41,44,44,47,63,39,49,0,0,0,0,0,0,0,0,0,0,0,0,-63,-60,-124,-129,-1212,-1160,-1967,-1644]} 1. Nf3 {[%emt 0:00:02]} c5 {[%emt 0:00:01]} 2. e3 {[%emt 0:00:01]} d5 {[%emt 0:00:02]} 3. b3 {[%emt 0:00:01]} Nc6 {[%emt 0:00:05]} 4. Bb2 {[%emt 0:00:03]} a6 {[%emt 0:00:02]} 5. d4 {[%emt 0:00:03]} Nf6 {[%emt 0:00:02]} 6. Nbd2 {[%emt 0:00:04] A06: Réti Opening: 1 Nf3 d5.} cxd4 $1 {[%emt 0:00:03][%mdl 4] is currently scoring better than 6...Bg4.} 7. Nxd4 {[%emt 0:00:01]} e6 {[%emt 0:00:02]} 8. Be2 {[%emt 0:00:03] The position is equal.} Bd6 {[%emt 0:00:02]} 9. O-O {[%emt 0:00:03]} O-O {[%emt 0:00:02]} 10. c4 {[%emt 0:00:01]} Nxd4 {[%emt 0:00:02]} 11. Bxd4 {[%emt 0:00:02] [#]} e5 $146 {[%emt 0:00:04]} ({Predecessor:} 11... Qe7 12. Bxf6 Qxf6 13. cxd5 exd5 14. Nf3 Rd8 15. Rc1 Ba3 16. Rc2 Bf5 17. Bd3 Be4 {1-0 (58) Mogstad,O (2073)-Brzezinski,B (1878) ICCF email 2013}) 12. Bb2 {[%emt 0:00:02]} Be6 {[%emt 0:01:00]} 13. cxd5 {[%emt 0:00:01]} Bxd5 {[%emt 0:00:02]} 14. Nc4 {[%emt 0:00:02]} Re8 {[%emt 0:00:04]} 15. Nxd6 {[%emt 0:00:54]} Qxd6 {[%emt 0:00:02]} 16. Qd2 {[%emt 0:00:01]} Qe6 {[%emt 0:00:17]} 17. Rfd1 {[%emt 0:00:05]} h6 {[%emt 0:00:09]} 18. Rac1 {[%emt 0:00:01]} Rac8 {[%emt 0:00:02]} 19. h3 {[%emt 0:00:02]} (19. Rxc8 {simplifies} Rxc8 20. f3 Qe8 21. Bf1) 19... Qf5 {[%emt 0:00:15]} 20. Bg4 {[%emt 0:00:28]} (20. f3 $14 {deserves consideration.} Rxc1 21. Rxc1 (21. Qxc1 Rc8 $11)) 20... Qg6 $1 $11 {[%emt 0:00:07][%cal Oh6h5] Hoping for ...h5!} 21. Rxc8 {[%emt 0:00:11]} Rxc8 {[%emt 0:00:01][%cal Be8c8,Bc8c2,Bc2a2][%mdl 32]} 22. Bxe5 {[%emt 0:00:13] A strong pair of Bishops.} Rc2 $40 {[%emt 0:00:37][%mdl 128] White needs to defend precisely.} 23. Qd4 {[%emt 0:00:13] [#] aiming for Bxf6.} Nxg4 {[%emt 0:00:02]} 24. hxg4 {[%emt 0:00:03]} Be6 {[%emt 0:00:16]} 25. f3 {[%emt 0:00:47]} Rxa2 {[%emt 0:00:01]} 26. Rc1 {[%emt 0:00:19] Inhibits Qc2.} ({Much worse is} 26. Qd8+ Kh7 $15) (26. e4 $11) 26... Kh7 $15 {[%emt 0:00:08]} 27. Qf4 {[%emt 0:00:06]} (27. Rc7 $15) 27... Qd3 $17 {[%emt 0:00:03]} 28. Bd4 $2 {[%emt 0:00:03][%mdl 8192]} (28. Kh1 $17) 28... Qd2 $19 {[%emt 0:00:03][%csl Ga2][%cal Rd2g2] [#]} ({Worse is} 28... Qxb3 29. Qe4+ (29. Qe5 f6 $11) 29... Kg8 30. Qe5 $11) 29. Qe4+ {[%emt 0:00:02]} g6 {[%emt 0:00:01] Weighted Error Value: White=0.69/Black=0.04 (flawless)} 0-1

[Event "4th Tata Steel India Blitz Open 2022"]
[Site "Kolkota"]
[Date "2022.12.03"]
[Round "4.5"]
[White "Erigaisi Arjun"]
[Black "Rameshbabu, Praggnanandhaa"]
[Result "1-0"]
[ECO "E20"]
[WhiteElo "2718"]
[BlackElo "2678"]
[Annotator "TA"]
[PlyCount "95"]
[EventDate "2022.11.29"]
[EventType "tourn"]
[EventCountry "IND"]
[SourceTitle "playchess.com"]
[Source "ChessBase"]
[SourceQuality "1"]
[TimeControl "180+2"]

{[%evp 13,95,16,16,0,39,28,23,45,42,32,27,28,18,-68,77,56,120,125,124,75,69,75,68,76,64,76,69,72,60,0,0,-102,-91,-117,-110,-93,-125,-106,-102,-147,-68,-68,-51,-54,-56,-49,-59,-195,-188,-199,-195,-344,-258,-268,-39,-26,15,19,294,-31,63,59,208,208,208,186,184,112,816,810,1794,591,412,0,12841,12839,12841,12842,12844,12844,12845,12845,12846,12846]} 1. d4 {[%emt 0:00:01][%cal Bd2d4,Bd4d5][%mdl 32]} Nf6 {[%emt 0:00:01]} 2. c4 {[%emt 0:00:01]} e6 {[%emt 0:00:01]} 3. Nc3 {[%emt 0:00:01]} Bb4 {[%emt 0:00:01]} 4. f3 {[%emt 0:00:01]} c5 {[%emt 0:00:16]} 5. d5 {[%emt 0:00:02]} O-O {[%emt 0:00:02]} 6. e4 {[%emt 0:00:01]} d6 {[%emt 0:00:00]} 7. Nge2 {[%emt 0:00:02]} b5 {[%emt 0:00:04]} 8. Ng3 {[%emt 0:00:04] E20: Nimzo-Indian: 4 g3 and 4 f3.} (8. cxb5 exd5 9. exd5 Re8 $15) 8... Re8 {[%emt 0:00:01]} 9. Bf4 {[%emt 0:00:02]} (9. cxb5 exd5 10. Be2 d4 $15) 9... exd5 {[%emt 0:00:03]} 10. cxd5 {[%emt 0:00:02] White has an edge.} (10. cxb5 $2 dxe4 11. Be2 exf3 12. gxf3 d5 $19) 10... c4 {[%emt 0:00:00]} 11. Be2 {[%emt 0:00:02]} Nbd7 {[%emt 0:00:03] [#]} 12. O-O $146 {[%emt 0:00:13]} ({Predecessor:} 12. a4 bxa4 13. O-O a3 14. Na4 Ne5 15. bxa3 Ba5 16. Kh1 Rb8 17. Ra2 Bd7 18. Bxe5 dxe5 19. Bxc4 {½-½ (37) Lupini,S (2391)-Zemlyanov,S (2381) ICCF email 2019}) 12... h5 {[%emt 0:00:06]} 13. a4 {[%emt 0:00:07]} (13. Nf5 $11) 13... bxa4 {[%emt 0:00:10]} (13... h4 $15 {keeps the upper hand.} 14. Nf5 Bc5+ 15. Be3 Qb6) 14. Nxa4 {[%emt 0:00:21]} (14. Rxa4 Bc5+ 15. Kh1 h4 $15) (14. Bxc4 a3 15. Na4 axb2 16. Nxb2 h4 $11) 14... Nb6 {[%emt 0:00:26]} (14... h4 $1 $14) 15. Bg5 $16 {[%emt 0:00:02]} Nxa4 {[%emt 0:00:05]} 16. Qxa4 {[%emt 0:00:09]} (16. Rxa4 $142 Qb6+ 17. Kh1) 16... Qb6+ {[%emt 0:00:04]} 17. Kh1 {[%emt 0:00:02] Active counter play!} Bd7 {[%emt 0:00:10]} 18. Qc2 {[%emt 0:00:04]} Nh7 {[%emt 0:00:03]} 19. Bd2 {[%emt 0:00:50]} h4 {[%emt 0:00:52]} 20. Nh5 {[%emt 0:00:03]} Reb8 {[%emt 0:00:01]} 21. Rab1 {[%emt 0:00:27]} (21. Bxb4 $14 Qxb4 22. Rfb1 (22. Qxc4 Qxc4 23. Bxc4 Rxb2 $11) (22. Bxc4 Qxb2 23. Qxb2 Rxb2 $11)) 21... Qd4 $36 {[%emt 0:00:09][%mdl 2048] Black is pushing.} 22. Bc3 {[%emt 0:00:08]} (22. Qxc4 $2 Qxd2 23. e5 dxe5 $19) (22. Bc1 $11 {keeps the balance.}) 22... Bxc3 $17 {[%emt 0:00:06]} 23. bxc3 {[%emt 0:00:01]} Qe3 {[%emt 0:00:01]} 24. Rbe1 {[%emt 0:00:18]} g6 {[%emt 0:00:36] Inhibits f4.} 25. f4 {[%emt 0:00:02][%cal Oe2g4]} Qb6 {[%emt 0:00:10]} (25... gxh5 $6 26. Bg4 $11) 26. Bxc4 {[%emt 0:00:20][%cal Oc2e2]} gxh5 {[%emt 0:00:02]} (26... Bg4 $1 $17 27. Be2 (27. Rb1 $2 Qc5 $19) 27... Bxh5 28. Bxh5 gxh5) 27. e5 $15 {[%emt 0:00:08]} Qb2 {[%emt 0:00:07]} 28. Qe4 {[%emt 0:00:02]} Qxc3 {[%emt 0:00:05] And now ...Rb4 would win.} 29. Bd3 $1 {[%emt 0:00:08]} Nf8 {[%emt 0:00:03]} 30. Qf3 {[%emt 0:00:06]} (30. Rc1 $15 Qb4 31. Rc4) 30... Rb3 $19 {[%emt 0:00:09]} 31. Re3 {[%emt 0:00:01][%cal Od3h7] aiming for Bh7+!} Bg4 $1 {[%emt 0:00:02]} 32. Qf2 {[%emt 0:00:03]} (32. Bh7+ {was forced.} Nxh7 33. Rxc3 Bxf3 34. Rxb3 Bxd5 35. Ra3) 32... Qb2 {[%emt 0:00:03]} 33. Qxh4 {[%emt 0:00:03] [#] Strongly threatening Qg5+.} Rxd3 $1 {[%emt 0:00:02]} 34. Rxd3 $15 {[%emt 0:00:01] Black must now prevent Qg5+.} Qe2 {[%emt 0:00:00][%cal Re2f1]} (34... Ng6 $5 {[%cal Rg6h4]} 35. Qe1 Qe2 $15) 35. Rdd1 {[%emt 0:00:02] h3 is the strong threat.} dxe5 $2 {[%emt 0:00:04][%mdl 8192]} (35... Ng6 $11 36. Qg5 Qe4) 36. Rde1 $2 {[%emt 0:00:02]} (36. Qg5+ $18 Kh8 37. Qf6+ (37. Qxe5+ $2 {loses.} Qxe5 38. fxe5 Bxd1 $19) (37. fxe5 Nh7 $18) 37... Kg8 38. fxe5 (38. Qxe5 $2 Qxe5 39. fxe5 Bxd1 $19)) 36... Qd3 {[%emt 0:00:01]} (36... Ng6 $15 37. Rxe2 Nxh4) 37. h3 $14 {[%emt 0:00:04]} Bf5 {[%emt 0:00:03]} (37... Ng6 $14 38. Qg5 exf4) 38. fxe5 $18 {[%emt 0:00:03]} ({Much less strong is} 38. Qxh5 $6 exf4 39. Rxf4 Bg6 $16) 38... Bg6 {[%emt 0:00:01]} 39. e6 {[%emt 0:00:02]} Qxd5 {[%emt 0:00:02] [#]} 40. exf7+ {[%emt 0:00:04]} ({Better is} 40. e7 $1 $18 {[%cal Re7e8]} Ne6 41. Qa4) 40... Kh7 $2 {[%emt 0:00:03][%mdl 8192]} (40... Bxf7 $16 41. Qg3+ Ng6) 41. Re8 $1 {[%emt 0:00:04]} Qb5 {[%emt 0:00:02] Prevents Qb4.} 42. Qe1 {[%emt 0:00:03]} (42. Rfe1 $142 Rxe8 43. fxe8=N Bxe8 44. Qe7+ Kg8 45. Qxe8 Qxe8 46. Rxe8) 42... Rb8 {[%emt 0:00:03] [#]} 43. Rf3 $2 {[%emt 0:00:02] Chess con chili.} ({But not} 43. Rf6 Qb1 44. Rf1 Qxe1 45. Rfxe1 Rb7 46. Rxf8 Bxf7 $18) (43. Kh2 $1 $18) 43... a5 $2 {[%emt 0:00:02][%mdl 8192]} (43... Qb1 $11) 44. Qe7 {[%emt 0:00:02] White is clearly winning.} Qb1+ {[%emt 0:00:01]} 45. Kh2 {[%emt 0:00:01]} Qe4 {[%emt 0:00:03]} 46. Qxe4 {[%emt 0:00:02]} Bxe4 {[%emt 0:00:01]} 47. Rxb8 {[%emt 0:00:01]} Bxf3 {[%emt 0:00:01]} 48. Rxf8 {[%emt 0:00:02] Weighted Error Value: White=0.55/Black=0.41} 1-0

[Event "4th Tata Steel India Blitz Open 2022"]
[Site "Kolkota"]
[Date "2022.12.03"]
[Round "5.3"]
[White "Rameshbabu, Praggnanandhaa"]
[Black "Nihal Sarin"]
[Result "0-1"]
[ECO "A11"]
[WhiteElo "2678"]
[BlackElo "2670"]
[Annotator "TA"]
[PlyCount "88"]
[EventDate "2022.11.29"]
[EventType "tourn"]
[EventCountry "IND"]
[SourceTitle "playchess.com"]
[Source "ChessBase"]
[SourceQuality "1"]
[TimeControl "180+2"]

{[%evp 13,88,0,0,0,0,0,-7,0,0,-17,0,-40,0,-31,23,-9,37,35,66,77,89,83,99,92,138,104,129,121,133,112,202,93,101,95,96,96,92,104,116,109,120,98,308,310,297,299,302,287,450,456,443,-684,-678,-671,-662,-652,-621,-904,-904,-863,-863,-856,-611,-1131,-1078,-1131,-1131,-29979,-29980,-29980,-29981,-29981,-29982,-29984,-29985,-29985,-29986]} 1. Nf3 {[%emt 0:00:02]} Nf6 {[%emt 0:00:03]} 2. g3 {[%emt 0:00:01]} g6 {[%emt 0:00:04]} 3. Bg2 {[%emt 0:00:02]} Bg7 {[%emt 0:00:01]} 4. O-O {[%emt 0:00:01]} O-O {[%emt 0:00:01]} 5. c4 {[%emt 0:00:02]} c6 {[%emt 0:00:04]} 6. d3 {[%emt 0:00:03]} d5 {[%emt 0:00:02]} 7. Qc2 {[%emt 0:00:01] 7.Nc3 gains popularity.} Re8 {[%emt 0:00:15]} 8. Bf4 {[%emt 0:00:06] Inhibits e5. A11: English Opening: 1...c6.} Nbd7 {[%emt 0:00:04]} 9. cxd5 {[%emt 0:00:02]} Nxd5 {[%emt 0:00:03]} 10. Bd2 {[%emt 0:00:06] The position is equal.} e5 {[%emt 0:00:03]} 11. Nc3 {[%emt 0:00:02]} N7f6 {[%emt 0:00:03]} 12. a3 {[%emt 0:00:05] [#]} a5 $146 {[%emt 0:00:16]} ({Predecessor:} 12... Qe7 13. Rac1 Nxc3 14. Bxc3 Nd5 15. Bd2 h6 16. b4 a6 17. e4 Nc7 18. Bc3 Nb5 {0-1 (32) Sinanovic,M (2386)-Loncar,R (2446) Sibenik 2008}) 13. Rad1 {[%emt 0:00:07]} h6 {[%emt 0:00:08]} (13... Nxc3 $15 14. Bxc3 Nd5) 14. h3 {[%emt 0:00:41]} Nc7 {[%emt 0:00:16]} (14... Nxc3 $11 15. Bxc3 Nd5) 15. e4 {[%emt 0:00:18]} (15. Qc1 $5 {[%cal Rd2h6]}) 15... c5 {[%emt 0:00:12]} 16. Na4 {[%emt 0:00:08]} Ne6 {[%emt 0:00:22]} 17. Nxc5 {[%emt 0:00:08]} Nxc5 {[%emt 0:00:41]} 18. Qxc5 {[%emt 0:00:01]} b6 {[%emt 0:00:00]} (18... Bd7 $142) 19. Qe3 {[%emt 0:00:11]} Nd7 {[%emt 0:00:21]} 20. Bc3 {[%emt 0:00:06]} Bb7 21. Rfe1 {[%emt 0:00:56]} Nc5 {[%emt 0:00:02] [#]} (21... Qc7 $16 {was called for.} 22. d4 exd4 23. Nxd4 Qc5) 22. b4 {[%emt 0:00:10]} (22. Bxe5 $1 $18 {[%mdl 512] has better winning chances.} Bxe5 23. d4 (23. Qxh6 $2 Bg7 $19)) 22... Na4 {[%emt 0:00:13]} 23. Ba1 {[%emt 0:00:01]} axb4 {[%emt 0:00:02]} 24. axb4 {[%emt 0:00:01]} Qd6 {[%emt 0:00:01]} 25. Rb1 {[%emt 0:00:05]} Rac8 {[%emt 0:00:05]} 26. d4 {[%emt 0:00:05]} exd4 {[%emt 0:00:03]} 27. Nxd4 {[%emt 0:00:01]} Rc4 $2 {[%emt 0:00:19] [#]} (27... Rcd8 $16) 28. Qb3 $18 {[%emt 0:00:12][%csl LRa4,LRc4]} Rxd4 {[%emt 0:00:09]} 29. Bxd4 {[%emt 0:00:01]} ({Not} 29. Qxa4 Bc6 30. Qb3 Rd3 $14) 29... Bxd4 {[%emt 0:00:01][%cal Bg7d4,Bd4f2,Bf2e1,Be1b4,Bb4d6][%mdl 32]} 30. Qxa4 {[%emt 0:00:02]} b5 {[%emt 0:00:04]} (30... Qe5 $142 31. Rbc1 b5) 31. Qxb5 {[%emt 0:00:07]} Bc6 {[%emt 0:00:01][%cal Bb7c6,Bc6b5,Bb5d7][%mdl 32]} 32. e5 $4 {[%emt 0:00:01][%mdl 8192]} (32. Qc4 $18 Qf6 33. Re2) 32... Bxf2+ $19 {[%emt 0:00:03] A strong pair of Bishops.} ({Less strong is} 32... Bxe5 33. Qxc6 Qb8 34. b5 $18) 33. Kh2 {[%emt 0:00:09]} Bxb5 {[%emt 0:00:01]} 34. exd6 {[%emt 0:00:01]} Rxe1 {[%emt 0:00:01]} 35. Rxe1 {[%emt 0:00:02]} Bxe1 {[%emt 0:00:01]} 36. Bf1 {[%emt 0:00:02]} Bd7 {[%emt 0:00:04]} (36... Bxf1 $2 37. d7 Bxb4 38. d8=Q+ (38. d8=B $2 {too greedy.} Kg7 $19) 38... Bf8 39. Qc8 $18) 37. b5 {[%emt 0:00:02]} Bb4 {[%emt 0:00:01]} 38. b6 {[%emt 0:00:00]} Bxd6 {[%emt 0:00:01]} 39. b7 {[%emt 0:00:01]} Bc6 {[%emt 0:00:01]} 40. Bg2 {[%emt 0:00:02]} Bxg2 {[%emt 0:00:02] Black mates.} 41. Kxg2 {[%emt 0:00:01]} f5 {[%emt 0:00:01]} 42. Kf3 {[%emt 0:00:01]} Kf7 {[%emt 0:00:01]} 43. g4 {[%emt 0:00:02]} Ke6 {[%emt 0:00:01]} 44. h4 h5 {[%emt 0:00:02] Never resign too early!   Weighted Error Value: White=0.76/Black=0.26 (precise)} 0-1

[Event "4th Tata Steel India Blitz Open 2022"]
[Site "Kolkota"]
[Date "2022.12.03"]
[Round "5.5"]
[White "Gukesh D"]
[Black "Abdusattorov, Nodirbek"]
[Result "1-0"]
[ECO "D02"]
[WhiteElo "2725"]
[BlackElo "2713"]
[Annotator "TA"]
[PlyCount "58"]
[EventDate "2022.11.29"]
[EventType "tourn"]
[EventCountry "IND"]
[SourceTitle "playchess.com"]
[Source "ChessBase"]
[SourceQuality "1"]
[TimeControl "180+2"]

{[%evp 14,58,45,39,59,65,58,35,32,47,48,45,41,42,41,32,23,0,69,76,405,142,159,131,248,253,245,235,241,188,177,0,201,202,729,729,773,764,1262,1227,1852,1933,1886,1807,1933,1924,1792]} 1. Nf3 {[%emt 0:00:02]} d5 {[%emt 0:00:01]} 2. g3 {[%emt 0:00:02]} Nf6 {[%emt 0:00:02]} 3. Bg2 {[%emt 0:00:01]} c5 {[%emt 0:00:01]} 4. O-O {[%emt 0:00:02]} Nc6 {[%emt 0:00:02]} 5. d4 {[%emt 0:00:04]} cxd4 {[%emt 0:00:02]} 6. Nxd4 {[%emt 0:00:02]} e5 {[%emt 0:00:01]} 7. Nxc6 {[%emt 0:00:02]} bxc6 {[%emt 0:00:01]} 8. c4 {[%emt 0:00:01]} Rb8 {[%emt 0:00:01] D02: 1 d4 d5 2 Nf3 sidelines, including 2...Nf6 3 g3 and 2...Nf6 3 Bf4.} (8... dxc4 9. Bxc6+ Bd7 10. Bxa8 Qxa8 11. Be3 $16) 9. Bg5 {[%emt 0:00:19]} Be7 {[%emt 0:00:12]} 10. Nc3 {[%emt 0:00:18]} (10. Bxf6 {is interesting.} Bxf6 11. cxd5 cxd5 12. Bxd5 Rxb2 13. Qa4+) 10... O-O {[%emt 0:00:24] White is slightly better.} 11. Bxf6 {[%emt 0:00:08]} Bxf6 {[%emt 0:00:01]} 12. cxd5 {[%emt 0:00:02]} cxd5 {[%emt 0:00:01]} 13. Nxd5 {[%emt 0:00:01]} Rxb2 {[%emt 0:00:01]} 14. Qa4 {[%emt 0:00:08] [#]} Rxe2 $146 {[%emt 0:00:14]} ({Predecessor:} 14... Be6 15. Nxf6+ Qxf6 16. Qxa7 Rxe2 17. a4 e4 18. Rae1 Bc4 19. Rxe2 Bxe2 20. Re1 Bf3 21. Bxf3 exf3 {½-½ (43) Webersberger,J (2362)-Ivanisevic,I (2656) Warsaw 2016}) 15. Rad1 {[%emt 0:00:25]} Bg5 {[%emt 0:00:03]} ({Black should try} 15... Be6 $11) 16. h4 {[%emt 0:00:05]} Bh6 {[%emt 0:00:04][%mdl 8192]} (16... Bf6 $16 {is tougher.}) 17. Qxa7 $2 {[%emt 0:00:07]} (17. Qb4 $18 {and White stays clearly on top. Ne7+ is the strong threat.} Kh8 18. Ne3) 17... Kh8 {[%emt 0:00:20]} 18. a4 {[%emt 0:00:40] aiming for Qc5.} Qe8 {[%emt 0:00:45]} (18... Rc2 $16 {was worth a try.}) 19. Qc5 $18 {[%emt 0:00:13] Strongly threatening Nc7.} g6 {[%emt 0:00:35] [#]} 20. a5 $1 {[%emt 0:00:01]} e4 {[%emt 0:00:17]} 21. Nc7 {[%emt 0:00:24] Inhibits e3.} Qa4 {[%emt 0:00:05]} 22. Ra1 $2 {[%emt 0:00:14] Inhibits e3.} (22. Rd4 $18 Qa2 23. Rxe4 (23. Bxe4 Bh3 $16) 23... Rxe4 24. Bxe4) 22... Qb3 {[%emt 0:00:07]} (22... Qc2 $11 {and Black has nothing to worry.} 23. Qxc2 Rxc2) 23. a6 {[%emt 0:00:15]} e3 $2 {[%emt 0:00:02]} (23... Qc2 24. Qb6 (24. Qxc2 Rxc2 25. Bxe4 Rxc7 $18) 24... Bxa6) 24. a7 {[%emt 0:00:05] White is clearly winning.} exf2+ {[%emt 0:00:08] [#]} 25. Kh2 $1 {[%emt 0:00:01]} ({Stronger than} 25. Rxf2 Rxf2 26. Qxf2 (26. a8=R $2 {too greedy.} Rc2 $19) (26. a8=Q $2 {perishes.} Rxg2+ 27. Qxg2 Be3+ $19) 26... Be3 $17) 25... Re3 {[%emt 0:00:16]} 26. a8=Q {[%emt 0:00:02]} Rxg3 {[%emt 0:00:01]} 27. Qe5+ {[%emt 0:00:01]} Bg7 {[%emt 0:00:05]} 28. Qxg3 {[%emt 0:00:02]} Qb4 {[%emt 0:00:03]} 29. Nd5 {[%emt 0:00:03]} Qd4 {[%emt 0:00:03] Weighted Error Value: White=0.37/Black=0.78} 1-0